{"text_format":"3","workbook":"xlsx","n_sheets":2,"sheets":["Lasku","Yrityksen tiedot"],"not_rendered":{"images":1,"defined_names":27},"read":"whole","date_system":"1900"}

{"sheet":"Lasku","index":0,"n_rows":35,"n_cols":7,"rows_kept":35,"merged":[[1,3,2,4],[3,3,3,4],[4,3,4,4],[5,3,5,4],[23,1,23,3],[24,1,24,3],[25,1,25,3],[26,1,26,3]]}
[null,"LASKU","0005"]
[null,{"$f":"TODAY()","v":"2022-04-08"},null,{"$f":"Lasku_yhteensä","v":79.65},null," ","Yrityksen tiedot"]
[null,"MAKSUN ERÄPÄIVÄ:",{"$f":"TODAY()+15","v":"2022-04-23"},null,null," "]
[null,"NOORA LINNA",null,"ADVENTURE WORKS"]
[null,"Fabrikam, Inc.",null,"23456 Maple Street"]
[null,"1234 First Street",null,"Orange Grove, CA 09876"]
[null,"Forest,  OR 12345"]
[null,"MÄÄRÄ","TIEDOT","YKSIKKÖHINTA","RIVI YHTEENSÄ"]
[null,2,"Vekottimia",14.95,{"$f":"IFERROR(LaskunTiedot[[#This Row],[YKSIKKÖHINTA]]*LaskunTiedot[[#This Row],[MÄÄRÄ]],\"\")","v":{"v":29.9,"d":"29.90"}}]
[null,5,"Tiivisteitä",9.95,{"$f":"IFERROR(LaskunTiedot[[#This Row],[YKSIKKÖHINTA]]*LaskunTiedot[[#This Row],[MÄÄRÄ]],\"\")","v":49.75}]
[{"$nulls":4},{"$f":"IFERROR(LaskunTiedot[[#This Row],[YKSIKKÖHINTA]]*LaskunTiedot[[#This Row],[MÄÄRÄ]],\"\")","v":0}]
[{"$nulls":4},{"$f":"IFERROR(LaskunTiedot[[#This Row],[YKSIKKÖHINTA]]*LaskunTiedot[[#This Row],[MÄÄRÄ]],\"\")","v":0}]
[{"$nulls":4},{"$f":"IFERROR(LaskunTiedot[[#This Row],[YKSIKKÖHINTA]]*LaskunTiedot[[#This Row],[MÄÄRÄ]],\"\")","v":0}]
[{"$nulls":4},{"$f":"IFERROR(LaskunTiedot[[#This Row],[YKSIKKÖHINTA]]*LaskunTiedot[[#This Row],[MÄÄRÄ]],\"\")","v":0}]
[{"$nulls":4},{"$f":"IFERROR(LaskunTiedot[[#This Row],[YKSIKKÖHINTA]]*LaskunTiedot[[#This Row],[MÄÄRÄ]],\"\")","v":0}]
[{"$nulls":4},{"$f":"IFERROR(LaskunTiedot[[#This Row],[YKSIKKÖHINTA]]*LaskunTiedot[[#This Row],[MÄÄRÄ]],\"\")","v":0}]
[{"$nulls":4},{"$f":"IFERROR(LaskunTiedot[[#This Row],[YKSIKKÖHINTA]]*LaskunTiedot[[#This Row],[MÄÄRÄ]],\"\")","v":0}]
[{"$nulls":4},{"$f":"IFERROR(LaskunTiedot[[#This Row],[YKSIKKÖHINTA]]*LaskunTiedot[[#This Row],[MÄÄRÄ]],\"\")","v":0}]
[{"$nulls":4},{"$f":"IFERROR(LaskunTiedot[[#This Row],[YKSIKKÖHINTA]]*LaskunTiedot[[#This Row],[MÄÄRÄ]],\"\")","v":0}]
[{"$nulls":4},{"$f":"IFERROR(LaskunTiedot[[#This Row],[YKSIKKÖHINTA]]*LaskunTiedot[[#This Row],[MÄÄRÄ]],\"\")","v":0}]
[{"$nulls":4},{"$f":"IFERROR(LaskunTiedot[[#This Row],[YKSIKKÖHINTA]]*LaskunTiedot[[#This Row],[MÄÄRÄ]],\"\")","v":0}]
[{"$nulls":4},{"$f":"IFERROR(LaskunTiedot[[#This Row],[YKSIKKÖHINTA]]*LaskunTiedot[[#This Row],[MÄÄRÄ]],\"\")","v":0}]
[{"$nulls":4},{"$f":"IFERROR(LaskunTiedot[[#This Row],[YKSIKKÖHINTA]]*LaskunTiedot[[#This Row],[MÄÄRÄ]],\"\")","v":0}]
[null,"Alennus"]
[null,"Nettosumma",null,null,{"$f":"SUM(LaskunTiedot[RIVI YHTEENSÄ])-E24","v":{"v":79.65,"d":"79.65 €"}}]
[null,"Vero"]
[null,{"$f":"REPT(YrityksenTiedot_ValuutanLyhenne,LEN(YrityksenTiedot_ValuutanLyhenne)>0) & \" SUMMA\"","v":"EUR SUMMA"},null,null,{"$f":"IFERROR(E25+E26, \"\")","v":{"v":79.65,"d":"79.65 €"}}]
[null,"MAKSUTIEDOT",null,null,"MUUT TIEDOT"]
[null,"Saajan nimi:",{"$f":" YrityksenTiedot_PankkisiirronSaajanNimi","v":"Adventure Works"},null,{"$f":"IFERROR(_xlfn.SINGLE(YrityksenTiedot_Nimi),\"\")","v":"Viljo Kurri"}]
[null,"Pankin nimi:",{"$f":"YrityksenTiedot_PankinNimi","v":"Woodgrove Bank"},null,{"$f":"IFERROR(\"Puhelin: \" & YrityksenTiedot_Puhelinnumero,\"\")","v":"Puhelin: 425-555-0150"}]
[null,"Pankin osoite:",{"$f":"YrityksenTiedot_PankinOsoite","v":"234 Main St. Orange Grove, CA 09876"},null,{"$f":"IFERROR(\"Faksi: \" & YrityksenTiedot_Faksinumero,\"\")","v":"Faksi: 425-555-0151"}]
[null,"Tilinumero:",{"$f":"YrityksenTiedot_Pankkitili","v":1234567},null,{"$f":"IFERROR(YrityksenTiedot_URL_osoite,\"\")","v":"Adventure-Works.com"}]
[null,"Reititysnumero (SWIFT-koodi)",{"$f":"YrityksenTiedot_Pankkireititys","v":9876543210},null,{"$f":"IFERROR(_xlfn.SINGLE(YrityksenTiedot_Sähköpostiosoite),\"\")","v":"Accounting@Adventure-Works.com"}]
[null,"Maksuviite:",{"$f":"Laskun_numeron_näyttö","v":"0005"},null,{"$f":"IFERROR(IF(LEN(Client_PO),\"Sopimus/OT: \" & Client_PO,\"\"),\"\")","v":""}]
[null,{"$f":"UPPER(\"Maksu on suoritettava pankkisiirtona tai sekkinä, jossa maksun saaja on \"&YrityksenTiedot_Pankkireititys &\".\")","v":"MAKSU ON SUORITETTAVA PANKKISIIRTONA TAI SEKKINÄ, JOSSA MAKSUN SAAJA ON 9876543210."}]

{"sheet":"Yrityksen tiedot","index":1,"n_rows":20,"n_cols":5,"rows_kept":20}
[null,"YRITYKSEN TIEDOT"]
[null,"LASKUTTAVAN YRITYKSEN TIEDOT","ARVO",null,"Lasku"]
[null,"Nimi","Viljo Kurri"]
[null,"Yrityksen nimi","ADVENTURE WORKS"]
[null,"Osoiterivi 1","23456 Maple Street"]
[null,"Osoiterivi 2","Orange Grove, CA 09876"]
[null,"Osoiterivi 3"]
[null,"Osoiterivi 4"]
[null,"Osoiterivi 5"]
[null,"Puhelin","425-555-0150"]
[null,"Faksi","425-555-0151"]
[null,"Verkkosivusto","Adventure-Works.com"]
[null,"Sähköposti","Accounting@Adventure-Works.com"]
[null,"Valuutan lyhenne","EUR"]
[null,"Pankkisiirron saajan nimi","Adventure Works"]
[null,"Pankin nimi","Woodgrove Bank"]
[null,"Pankin osoite","234 Main St. Orange Grove, CA 09876"]
[null,"Tilinumero",1234567]
[null,"Reititysnumero (SWIFT-koodi)",9876543210]
[null,"Maksujen saaja","Adventure Works"]